[Event "*** Titled Tuesday Blitz"]
[Site "Chess.com"]
[Date "2020.11.24"]
[Round "5"]
[White "Squirlolz"]
[Black "jefferyx"]
[Result "1/2-1/2"]
[WhiteElo "2551"]
[BlackElo "2920"]
[TimeControl "180+1"]
[EndTime "11:12:27 PST"]
[Termination "Game drawn by repetition"]

1. e4 {[%clk 0:02:58.2]} 1... a6 {[%clk 0:02:56.3]} 2. d4 {[%clk 0:02:57]} 2...
b5 {[%clk 0:02:56.3]} 3. a4 {[%clk 0:02:57.1]} 3... b4 {[%clk 0:02:56.6]} 4. Bd3
{[%clk 0:02:55.5]} 4... Bb7 {[%clk 0:02:57.2]} 5. Ne2 {[%clk 0:02:55.8]} 5... e6
{[%clk 0:02:57]} 6. O-O {[%clk 0:02:55.6]} 6... c5 {[%clk 0:02:57.6]} 7. c3
{[%clk 0:02:53.9]} 7... Nc6 {[%clk 0:02:58.1]} 8. Be3 {[%clk 0:02:52.5]} 8...
bxc3 {[%clk 0:02:58.5]} 9. bxc3 {[%clk 0:02:51.3]} 9... cxd4 {[%clk 0:02:59.4]}
10. cxd4 {[%clk 0:02:51.4]} 10... Nb4 {[%clk 0:03:00.1]} 11. Nbc3 {[%clk
0:02:48.5]} 11... Nxd3 {[%clk 0:02:58.4]} 12. Qxd3 {[%clk 0:02:49.4]} 12... Bb4
{[%clk 0:02:34.1]} 13. Rab1 {[%clk 0:02:24.3]} 13... a5 {[%clk 0:02:34.2]} 14.
Nb5 {[%clk 0:02:25.1]} 14... Ba6 {[%clk 0:01:51.1]} 15. Rfc1 {[%clk 0:02:11]}
15... Nf6 {[%clk 0:01:50.4]} 16. Ng3 {[%clk 0:01:59.2]} 16... O-O {[%clk
0:01:41.7]} 17. Bd2 {[%clk 0:01:59.3]} 17... Bxb5 {[%clk 0:01:35.1]} 18. axb5
{[%clk 0:01:57.1]} 18... Bxd2 {[%clk 0:01:36]} 19. Qxd2 {[%clk 0:01:58]} 19...
Qb6 {[%clk 0:01:36.9]} 20. Qd3 {[%clk 0:01:30.8]} 20... Rfc8 {[%clk 0:01:31.9]}
21. Ne2 {[%clk 0:01:28.9]} 21... a4 {[%clk 0:01:25.7]} 22. Ra1 {[%clk
0:01:21.5]} 22... Rxc1+ {[%clk 0:01:23.6]} 23. Nxc1 {[%clk 0:01:21.9]} 23... Ra5
{[%clk 0:01:11]} 24. f3 {[%clk 0:01:15.1]} 24... h6 {[%clk 0:01:04.8]} 25. Ne2
{[%clk 0:01:10.1]} 25... e5 {[%clk 0:00:51.2]} 26. Kf1 {[%clk 0:00:57.3]} 26...
d5 {[%clk 0:00:46]} 27. dxe5 {[%clk 0:00:48.1]} 27... dxe4 {[%clk 0:00:42]} 28.
Qd4 {[%clk 0:00:41.5]} 28... Qxd4 {[%clk 0:00:33.4]} 29. Nxd4 {[%clk 0:00:42.4]}
29... Nd7 {[%clk 0:00:33.4]} 30. fxe4 {[%clk 0:00:21.6]} 30... Nxe5 {[%clk
0:00:33.3]} 31. Nc6 {[%clk 0:00:22]} 31... Rxb5 {[%clk 0:00:23.9]} 32. Nxe5
{[%clk 0:00:21.8]} 32... Rxe5 {[%clk 0:00:24.8]} 33. Rxa4 {[%clk 0:00:22.3]}
33... Kh7 {[%clk 0:00:25.7]} 34. Kf2 {[%clk 0:00:22.5]} 34... Kg6 {[%clk
0:00:26.4]} 35. Kf3 {[%clk 0:00:22.8]} 35... Rb5 {[%clk 0:00:27.1]} 36. Ra3
{[%clk 0:00:21]} 36... Kg5 {[%clk 0:00:27.1]} 37. g3 {[%clk 0:00:18.6]} 37... f6
{[%clk 0:00:26.7]} 38. h4+ {[%clk 0:00:18.3]} 38... Kh5 {[%clk 0:00:27]} 39. Rd3
{[%clk 0:00:18.4]} 39... Kg6 {[%clk 0:00:23.8]} 40. Kf4 {[%clk 0:00:17]} 40...
h5 {[%clk 0:00:24]} 41. Rc3 {[%clk 0:00:17]} 41... Rb4 {[%clk 0:00:24]} 42. Re3
{[%clk 0:00:16.2]} 42... Kf7 {[%clk 0:00:23.7]} 43. Rd3 {[%clk 0:00:16.4]} 43...
Ke6 {[%clk 0:00:23.8]} 44. Rd5 {[%clk 0:00:16.8]} 44... g6 {[%clk 0:00:23]} 45.
Ra5 {[%clk 0:00:17.1]} 45... Rb1 {[%clk 0:00:12.2]} 46. Ra6+ {[%clk 0:00:16.8]}
46... Kf7 {[%clk 0:00:12.6]} 47. Ra7+ {[%clk 0:00:13.1]} 47... Kg8 {[%clk
0:00:13]} 48. Kf3 {[%clk 0:00:07.4]} 48... Rb3+ {[%clk 0:00:07.5]} 49. Kf4
{[%clk 0:00:07.1]} 49... Rb1 {[%clk 0:00:08.4]} 50. Kf3 {[%clk 0:00:07.6]} 50...
Rb3+ {[%clk 0:00:08.5]} 51. Kf4 {[%clk 0:00:08.1]} 51... Rb1 {[%clk 0:00:09.4]}
1/2-1/2

[Event "*** Titled Tuesday Blitz"]
[Site "Chess.com"]
[Date "2020.11.24"]
[Round "5"]
[White "Leonid_Starozhilov"]
[Black "GM_LOADING"]
[Result "0-1"]
[WhiteElo "2658"]
[BlackElo "2494"]
[TimeControl "180+1"]
[EndTime "11:12:28 PST"]
[Termination "GM_LOADING won on time"]

1. e4 {[%clk 0:02:35.6]} 1... e5 {[%clk 0:02:59.4]} 2. Nf3 {[%clk 0:02:35.2]}
2... Nc6 {[%clk 0:03:00]} 3. Bb5 {[%clk 0:02:35.7]} 3... g5 {[%clk 0:03:00.1]}
4. d3 {[%clk 0:02:17.9]} 4... h6 {[%clk 0:02:42.8]} 5. Bxc6 {[%clk 0:02:10.4]}
5... bxc6 {[%clk 0:02:43.1]} 6. Nxe5 {[%clk 0:02:07.3]} 6... Bg7 {[%clk
0:02:43.6]} 7. Nf3 {[%clk 0:02:05.1]} 7... Ne7 {[%clk 0:02:42.5]} 8. Nc3 {[%clk
0:01:58.9]} 8... d5 {[%clk 0:02:38.6]} 9. O-O {[%clk 0:01:53.5]} 9... O-O {[%clk
0:02:35.2]} 10. d4 {[%clk 0:01:30.2]} 10... dxe4 {[%clk 0:02:26.4]} 11. Nxe4
{[%clk 0:01:29.9]} 11... Rb8 {[%clk 0:02:21.2]} 12. c3 {[%clk 0:01:08.1]} 12...
Ng6 {[%clk 0:02:13.9]} 13. Nfd2 {[%clk 0:00:57.1]} 13... Qd5 {[%clk 0:02:10]}
14. Re1 {[%clk 0:00:52]} 14... Bf5 {[%clk 0:01:42.6]} 15. Ng3 {[%clk 0:00:43.3]}
15... Nh4 {[%clk 0:01:39.6]} 16. Nf3 {[%clk 0:00:38.9]} 16... Bg4 {[%clk
0:01:22.3]} 17. Nxh4 {[%clk 0:00:10]} 17... Bxd1 {[%clk 0:01:21.4]} 18. Nhf5
{[%clk 0:00:10.4]} 18... Rfe8 {[%clk 0:01:11.1]} 19. Rxd1 {[%clk 0:00:10.6]}
19... c5 {[%clk 0:00:47.4]} 20. b3 {[%clk 0:00:07.5]} 20... cxd4 {[%clk
0:00:46.4]} 21. cxd4 {[%clk 0:00:08]} 21... Bf8 {[%clk 0:00:24.1]} 22. Be3
{[%clk 0:00:07.2]} 22... Rb6 {[%clk 0:00:21.9]} 23. h4 {[%clk 0:00:04.9]} 23...
Rf6 {[%clk 0:00:19.1]} 24. Rac1 {[%clk 0:00:03.2]} 24... Rxf5 {[%clk 0:00:19]}
25. Nxf5 {[%clk 0:00:03]} 25... Qxf5 {[%clk 0:00:19.9]} 26. hxg5 {[%clk
0:00:03.5]} 26... hxg5 {[%clk 0:00:19.2]} 27. Rxc7 {[%clk 0:00:03.5]} 27... Bd6
{[%clk 0:00:19.1]} 28. Rc6 {[%clk 0:00:03.4]} 28... Qd5 {[%clk 0:00:10.4]} 29.
Rdc1 {[%clk 0:00:03.9]} 29... Kg7 {[%clk 0:00:09.6]} 30. R6c2 {[%clk 0:00:03.9]}
30... Rh8 {[%clk 0:00:09.2]} 31. Kf1 {[%clk 0:00:03.6]} 31... Rh2 {[%clk
0:00:08.8]} 32. Ke2 {[%clk 0:00:04.2]} 32... Rxg2 {[%clk 0:00:08.8]} 33. Kd2
{[%clk 0:00:04.4]} 33... Bf4 {[%clk 0:00:07.1]} 34. Kd3 {[%clk 0:00:04.4]} 34...
Bxe3 {[%clk 0:00:07.6]} 35. fxe3 {[%clk 0:00:05.1]} 35... Rxc2 {[%clk
0:00:07.4]} 36. Rxc2 {[%clk 0:00:05.4]} 36... f5 {[%clk 0:00:07.5]} 37. Rc7+
{[%clk 0:00:05.2]} 37... Kg6 {[%clk 0:00:06.8]} 38. Rc5 {[%clk 0:00:05.8]} 38...
Qe4+ {[%clk 0:00:07.2]} 39. Kc3 {[%clk 0:00:06.3]} 39... g4 {[%clk 0:00:07.7]}
40. Re5 {[%clk 0:00:06.2]} 40... Qxe5 {[%clk 0:00:06.5]} 41. dxe5 {[%clk
0:00:07.1]} 41... g3 {[%clk 0:00:07.2]} 42. Kd4 {[%clk 0:00:08]} 42... g2 {[%clk
0:00:07.6]} 43. Kd5 {[%clk 0:00:08.9]} 43... g1=Q {[%clk 0:00:08.2]} 44. Kd6
{[%clk 0:00:09.8]} 44... Qxe3 {[%clk 0:00:08.5]} 45. e6 {[%clk 0:00:10.7]} 45...
Kf6 {[%clk 0:00:09.1]} 46. e7 {[%clk 0:00:11]} 46... Qxe7+ {[%clk 0:00:09.7]}
47. Kc6 {[%clk 0:00:11.9]} 47... Qa3 {[%clk 0:00:09.8]} 0-1

[Event "*** Titled Tuesday Blitz"]
[Site "Chess.com"]
[Date "2020.11.24"]
[Round "5"]
[White "Mikhail_Golubev"]
[Black "SHIVACalypso"]
[Result "0-1"]
[WhiteElo "2560"]
[BlackElo "2428"]
[TimeControl "180+1"]
[EndTime "11:12:28 PST"]
[Termination "SHIVACalypso won by resignation"]

1. e4 {[%clk 0:03:00.9]} 1... e6 {[%clk 0:02:59.8]} 2. d4 {[%clk 0:02:59.1]}
2... d5 {[%clk 0:03:00.2]} 3. Nc3 {[%clk 0:02:59.7]} 3... Nf6 {[%clk 0:03:00.3]}
4. Bg5 {[%clk 0:02:58.8]} 4... dxe4 {[%clk 0:03:00]} 5. Nxe4 {[%clk 0:02:58.6]}
5... Be7 {[%clk 0:02:59.9]} 6. Nxf6+ {[%clk 0:02:56.4]} 6... Bxf6 {[%clk
0:02:59.1]} 7. Bxf6 {[%clk 0:02:56.5]} 7... Qxf6 {[%clk 0:02:59.5]} 8. Qd2
{[%clk 0:02:56.6]} 8... c5 {[%clk 0:02:57.3]} 9. O-O-O {[%clk 0:02:50.3]} 9...
cxd4 {[%clk 0:02:46.7]} 10. Nf3 {[%clk 0:02:33.6]} 10... Nc6 {[%clk 0:02:41.1]}
11. Nxd4 {[%clk 0:02:29.7]} 11... Nxd4 {[%clk 0:02:37.1]} 12. Qxd4 {[%clk
0:02:28.9]} 12... Qxd4 {[%clk 0:02:36.3]} 13. Rxd4 {[%clk 0:02:29.8]} 13... a6
{[%clk 0:02:21.6]} 14. g3 {[%clk 0:02:22.6]} 14... Ke7 {[%clk 0:02:07.2]} 15.
Bg2 {[%clk 0:02:21]} 15... Rd8 {[%clk 0:02:06.7]} 16. Rb4 {[%clk 0:02:10.9]}
16... Rb8 {[%clk 0:02:01.9]} 17. Re1 {[%clk 0:02:09]} 17... b6 {[%clk
0:01:50.6]} 18. f4 {[%clk 0:02:06.5]} 18... a5 {[%clk 0:01:50]} 19. Rb3 {[%clk
0:01:58.1]} 19... Bb7 {[%clk 0:01:40]} 20. Bxb7 {[%clk 0:01:50.4]} 20... Rxb7
{[%clk 0:01:40.9]} 21. f5 {[%clk 0:01:50.8]} 21... Rd6 {[%clk 0:01:40.1]} 22.
Rbe3 {[%clk 0:01:46.8]} 22... Rbd7 {[%clk 0:01:38.4]} 23. fxe6 {[%clk 0:01:47]}
23... Rxe6 {[%clk 0:01:39.3]} 24. Rxe6+ {[%clk 0:01:46.4]} 24... fxe6 {[%clk
0:01:40.2]} 25. c3 {[%clk 0:01:43.9]} 25... Kf6 {[%clk 0:01:36.5]} 26. Kc2
{[%clk 0:01:43.3]} 26... e5 {[%clk 0:01:34.3]} 27. Rd1 {[%clk 0:01:41.1]} 27...
Rxd1 {[%clk 0:00:56.9]} 28. Kxd1 {[%clk 0:01:40.6]} 28... Kf5 {[%clk 0:00:57.8]}
29. b4 {[%clk 0:01:23.9]} 29... Ke4 {[%clk 0:00:49.7]} 30. Kc2 {[%clk
0:00:40.2]} 30... Kd5 {[%clk 0:00:33.3]} 31. Kb3 {[%clk 0:00:33]} 31... e4
{[%clk 0:00:31.7]} 32. c4+ {[%clk 0:00:33.2]} 32... Kd4 {[%clk 0:00:30.4]} 33.
c5 {[%clk 0:00:26.5]} 33... bxc5 {[%clk 0:00:30.6]} 34. bxa5 {[%clk 0:00:26.4]}
34... c4+ {[%clk 0:00:30.9]} 35. Kb4 {[%clk 0:00:13.3]} 35... c3 {[%clk
0:00:27.5]} 36. Kb3 {[%clk 0:00:12.3]} 36... Kd3 {[%clk 0:00:16.2]} 37. a6
{[%clk 0:00:12.5]} 37... c2 {[%clk 0:00:16.5]} 38. a7 {[%clk 0:00:12.3]} 38...
c1=Q {[%clk 0:00:15.8]} 39. a8=Q {[%clk 0:00:12.3]} 39... Qc3+ {[%clk
0:00:12.7]} 40. Ka4 {[%clk 0:00:11.6]} 40... e3 {[%clk 0:00:10.1]} 41. Qd5+
{[%clk 0:00:10.3]} 41... Qd4+ {[%clk 0:00:10.3]} 42. Qxd4+ {[%clk 0:00:08.5]}
42... Kxd4 {[%clk 0:00:11.2]} 43. Kb5 {[%clk 0:00:06.8]} 43... e2 {[%clk
0:00:11]} 44. a4 {[%clk 0:00:07.7]} 44... e1=Q {[%clk 0:00:11.1]} 45. a5 {[%clk
0:00:08.6]} 45... Qe8+ {[%clk 0:00:11]} 46. Kb6 {[%clk 0:00:08.2]} 46... Qa8
{[%clk 0:00:11.9]} 47. a6 {[%clk 0:00:07.7]} 47... Ke3 {[%clk 0:00:12.8]} 48. g4
{[%clk 0:00:07.1]} 48... Kf2 {[%clk 0:00:13.7]} 49. h4 {[%clk 0:00:07.3]} 49...
Kg3 {[%clk 0:00:14.1]} 50. h5 {[%clk 0:00:07.8]} 50... Kxg4 {[%clk 0:00:14.4]}
51. h6 {[%clk 0:00:08.7]} 51... gxh6 {[%clk 0:00:14]} 0-1

[Event "*** Titled Tuesday Blitz"]
[Site "Chess.com"]
[Date "2020.11.24"]
[Round "5"]
[White "oskariot"]
[Black "saraswathii"]
[Result "0-1"]
[WhiteElo "2638"]
[BlackElo "2415"]
[TimeControl "180+1"]
[EndTime "11:12:29 PST"]
[Termination "saraswathii won by resignation"]

1. c4 {[%clk 0:03:00.9]} 1... g6 {[%clk 0:02:57.7]} 2. g3 {[%clk 0:03:01.8]}
2... Bg7 {[%clk 0:02:57]} 3. Bg2 {[%clk 0:03:02.7]} 3... Nf6 {[%clk 0:02:57]} 4.
Nc3 {[%clk 0:03:03.3]} 4... O-O {[%clk 0:02:56.5]} 5. e4 {[%clk 0:03:03.9]} 5...
d6 {[%clk 0:02:53.7]} 6. Nge2 {[%clk 0:03:04.4]} 6... Nbd7 {[%clk 0:02:50.9]} 7.
O-O {[%clk 0:03:04.3]} 7... e5 {[%clk 0:02:49.7]} 8. d3 {[%clk 0:03:04.5]} 8...
c6 {[%clk 0:02:47.6]} 9. f4 {[%clk 0:03:04.8]} 9... Qb6+ {[%clk 0:02:45.9]} 10.
Kh1 {[%clk 0:03:04.7]} 10... Ng4 {[%clk 0:02:45.8]} 11. Qe1 {[%clk 0:02:38.6]}
11... Nc5 {[%clk 0:02:44.8]} 12. Qd2 {[%clk 0:02:05.6]} 12... f5 {[%clk
0:02:42.7]} 13. h3 {[%clk 0:01:58]} 13... Nf6 {[%clk 0:02:40.1]} 14. fxe5 {[%clk
0:01:46.3]} 14... dxe5 {[%clk 0:02:37.3]} 15. Qe3 {[%clk 0:01:11.2]} 15... fxe4
{[%clk 0:02:24]} 16. dxe4 {[%clk 0:01:12.1]} 16... Be6 {[%clk 0:02:19.8]} 17. b3
{[%clk 0:01:04.5]} 17... Rf7 {[%clk 0:02:06.5]} 18. Ba3 {[%clk 0:00:55.1]} 18...
Na6 {[%clk 0:02:04.8]} 19. c5 {[%clk 0:00:46.1]} 19... Qc7 {[%clk 0:02:03.8]}
20. Bb2 {[%clk 0:00:33.1]} 20... Rd8 {[%clk 0:01:54.6]} 21. a3 {[%clk
0:00:28.1]} 21... Rfd7 {[%clk 0:01:48]} 22. Rfd1 {[%clk 0:00:13.3]} 22... Bxb3
{[%clk 0:01:44.6]} 23. Rxd7 {[%clk 0:00:07]} 23... Qxd7 {[%clk 0:01:45.5]} 24.
Nd5 {[%clk 0:00:06.5]} 24... Bxd5 {[%clk 0:01:38.9]} 25. exd5 {[%clk 0:00:06.9]}
25... Nxd5 {[%clk 0:01:39.1]} 26. Qb3 {[%clk 0:00:07.3]} 26... Nxc5 {[%clk
0:01:38]} 27. Qc4 {[%clk 0:00:07.9]} 27... Ne6 {[%clk 0:01:35.7]} 28. Rd1 {[%clk
0:00:08.5]} 28... Ng5 {[%clk 0:01:32]} 29. Kh2 {[%clk 0:00:08]} 29... Qe6 {[%clk
0:01:23]} 30. h4 {[%clk 0:00:08.1]} 30... Nf7 {[%clk 0:01:22.3]} 31. Nc3 {[%clk
0:00:08.5]} 31... Nc7 {[%clk 0:01:17.1]} 32. Rxd8+ {[%clk 0:00:06.7]} 32... Nxd8
{[%clk 0:01:16.7]} 33. Qe2 {[%clk 0:00:06.3]} 33... Nf7 {[%clk 0:01:14.5]} 34.
Ne4 {[%clk 0:00:06.8]} 34... b6 {[%clk 0:01:12]} 35. Qc2 {[%clk 0:00:06.7]}
35... Nd5 {[%clk 0:01:11.1]} 36. Bh3 {[%clk 0:00:06.8]} 36... Qe8 {[%clk
0:01:07.5]} 37. Bf1 {[%clk 0:00:04.2]} 37... Ne3 {[%clk 0:01:04.8]} 38. Qe2
{[%clk 0:00:04.4]} 38... Nxf1+ {[%clk 0:01:04.3]} 39. Qxf1 {[%clk 0:00:05.3]}
39... Qe6 {[%clk 0:01:00.5]} 40. Qe2 {[%clk 0:00:05.8]} 40... Nd6 {[%clk
0:00:49.9]} 41. Ng5 {[%clk 0:00:05.6]} 41... Qd5 {[%clk 0:00:49.7]} 42. Qf2
{[%clk 0:00:05.1]} 42... Ne4 {[%clk 0:00:45.4]} 43. Qe2 {[%clk 0:00:05.2]} 43...
Nxg5 {[%clk 0:00:44.6]} 44. hxg5 {[%clk 0:00:06.1]} 44... e4 {[%clk 0:00:43]}
45. Bxg7 {[%clk 0:00:06.1]} 45... Kxg7 {[%clk 0:00:43.9]} 46. Qa6 {[%clk
0:00:07]} 46... Qxg5 {[%clk 0:00:36.4]} 47. Qb7+ {[%clk 0:00:06.3]} 47... Kh6
{[%clk 0:00:35.7]} 48. Qxc6 {[%clk 0:00:06.8]} 48... e3 {[%clk 0:00:33.5]} 49.
Qe8 {[%clk 0:00:07.1]} 49... Qh5+ {[%clk 0:00:29.4]} 50. Kg2 {[%clk 0:00:07.4]}
50... Qd5+ {[%clk 0:00:27.5]} 51. Kh2 {[%clk 0:00:06.9]} 51... Qa2+ {[%clk
0:00:24.2]} 52. Kh3 {[%clk 0:00:06.8]} 52... Qxa3 {[%clk 0:00:23.4]} 53. Qe7
{[%clk 0:00:05.7]} 53... Qxe7 {[%clk 0:00:22.8]} 0-1

[Event "*** Titled Tuesday Blitz"]
[Site "Chess.com"]
[Date "2020.11.24"]
[Round "5"]
[White "TST2014"]
[Black "VladaSviridova"]
[Result "1-0"]
[WhiteElo "2499"]
[BlackElo "2276"]
[TimeControl "180+1"]
[EndTime "11:12:30 PST"]
[Termination "TST2014 won on time"]

1. d4 {[%clk 0:03:00.9]} 1... d5 {[%clk 0:02:59.9]} 2. c4 {[%clk 0:03:00.5]}
2... c6 {[%clk 0:03:00.3]} 3. Nf3 {[%clk 0:03:00.3]} 3... Nf6 {[%clk 0:03:00.6]}
4. Nc3 {[%clk 0:03:00.2]} 4... dxc4 {[%clk 0:03:00.7]} 5. a4 {[%clk 0:03:00]}
5... Bf5 {[%clk 0:03:00.5]} 6. e3 {[%clk 0:02:59.8]} 6... e6 {[%clk 0:03:00.4]}
7. Bxc4 {[%clk 0:03:00.3]} 7... Bb4 {[%clk 0:03:00.4]} 8. O-O {[%clk 0:03:00.8]}
8... O-O {[%clk 0:03:00.6]} 9. Qe2 {[%clk 0:02:59.2]} 9... Nbd7 {[%clk
0:02:59.9]} 10. e4 {[%clk 0:02:58.2]} 10... Bg6 {[%clk 0:03:00.2]} 11. Rd1
{[%clk 0:02:57.1]} 11... Bxc3 {[%clk 0:02:54]} 12. bxc3 {[%clk 0:02:56.8]} 12...
Bxe4 {[%clk 0:02:49.3]} 13. a5 {[%clk 0:02:50.5]} 13... b5 {[%clk 0:02:31.2]}
14. Bb3 {[%clk 0:02:45.1]} 14... Qc7 {[%clk 0:02:14.1]} 15. Bg5 {[%clk
0:02:24.9]} 15... h6 {[%clk 0:02:10.2]} 16. Bh4 {[%clk 0:02:23.8]} 16... c5
{[%clk 0:01:14.9]} 17. Ne5 {[%clk 0:02:02.6]} 17... Bd5 {[%clk 0:00:39]} 18.
Nxd7 {[%clk 0:01:51.8]} 18... Nxd7 {[%clk 0:00:35.9]} 19. Bxd5 {[%clk
0:01:48.1]} 19... exd5 {[%clk 0:00:36]} 20. Qxb5 {[%clk 0:01:47.9]} 20... Rab8
{[%clk 0:00:31.3]} 21. Qe2 {[%clk 0:01:32.7]} 21... Qc6 {[%clk 0:00:28.6]} 22.
h3 {[%clk 0:01:23.5]} 22... c4 {[%clk 0:00:27.9]} 23. Re1 {[%clk 0:01:21]} 23...
Nf6 {[%clk 0:00:27.1]} 24. Qe7 {[%clk 0:01:11.1]} 24... Rb7 {[%clk 0:00:20.2]}
25. Qe3 {[%clk 0:01:02.6]} 25... Re8 {[%clk 0:00:18.4]} 26. Qc1 {[%clk
0:00:41.4]} 26... Rxe1+ {[%clk 0:00:17.6]} 27. Qxe1 {[%clk 0:00:40.7]} 27... Ne4
{[%clk 0:00:16.6]} 28. f3 {[%clk 0:00:40]} 28... Nd6 {[%clk 0:00:15.7]} 29. Qe5
{[%clk 0:00:37.4]} 29... g5 {[%clk 0:00:13.9]} 30. Bg3 {[%clk 0:00:37]} 30...
Ne8 {[%clk 0:00:13]} 31. Re1 {[%clk 0:00:33.8]} 31... Ng7 {[%clk 0:00:13]} 32.
h4 {[%clk 0:00:31.8]} 32... gxh4 {[%clk 0:00:12.2]} 33. Bxh4 {[%clk 0:00:31.2]}
33... Rb3 {[%clk 0:00:12.1]} 34. Bf6 {[%clk 0:00:30.8]} 34... Ne6 {[%clk
0:00:10.8]} 35. Qg3+ {[%clk 0:00:29.9]} 35... Kf8 {[%clk 0:00:10.7]} 36. Qh4
{[%clk 0:00:30]} 36... Rxc3 {[%clk 0:00:09.4]} 37. Qxh6+ {[%clk 0:00:30]} 37...
Ke8 {[%clk 0:00:09.7]} 38. Qh8+ {[%clk 0:00:28.3]} 38... Kd7 {[%clk 0:00:08.9]}
39. Qb8 {[%clk 0:00:25.6]} 39... Qc7 {[%clk 0:00:07.9]} 40. Qb5+ {[%clk
0:00:24.7]} 40... Qc6 {[%clk 0:00:08.1]} 41. Qb4 {[%clk 0:00:25]} 41... Rb3
{[%clk 0:00:07.6]} 42. Qe7+ {[%clk 0:00:24.7]} 42... Kc8 {[%clk 0:00:07.8]} 43.
Qxf7 {[%clk 0:00:25.2]} 43... Nc7 {[%clk 0:00:03.5]} 44. Re7 {[%clk 0:00:23.8]}
44... Kb7 {[%clk 0:00:03.6]} 45. Be5 {[%clk 0:00:23.8]} 45... c3 {[%clk
0:00:02.8]} 46. Rxc7+ {[%clk 0:00:23.6]} 46... Qxc7 {[%clk 0:00:03]} 47. Qxc7+
{[%clk 0:00:24.3]} 47... Ka6 {[%clk 0:00:03.3]} 48. Qc6+ {[%clk 0:00:23.4]}
48... Kxa5 {[%clk 0:00:03.1]} 49. Qxd5+ {[%clk 0:00:23.8]} 49... Kb4 {[%clk
0:00:02.7]} 50. Qc5+ {[%clk 0:00:23.2]} 50... Ka4 {[%clk 0:00:02.4]} 51. Bd6
{[%clk 0:00:22.5]} 51... a5 {[%clk 0:00:02.3]} 52. Qc4+ {[%clk 0:00:22.4]} 1-0

[Event "*** Titled Tuesday Blitz"]
[Site "Chess.com"]
[Date "2020.11.24"]
[Round "5"]
[White "salomez"]
[Black "sopo-tereladze"]
[Result "0-1"]
[WhiteElo "2145"]
[BlackElo "2302"]
[TimeControl "180+1"]
[EndTime "11:12:30 PST"]
[Termination "sopo-tereladze won on time"]

1. e4 {[%clk 0:03:00.1]} 1... d6 {[%clk 0:02:58.4]} 2. d4 {[%clk 0:02:58.3]}
2... Nd7 {[%clk 0:02:58.1]} 3. Nc3 {[%clk 0:02:56.7]} 3... Ngf6 {[%clk
0:02:57.6]} 4. g3 {[%clk 0:02:57.6]} 4... e5 {[%clk 0:02:55.5]} 5. Bg2 {[%clk
0:02:57.9]} 5... Be7 {[%clk 0:02:55.6]} 6. Nge2 {[%clk 0:02:58.8]} 6... O-O
{[%clk 0:02:10]} 7. O-O {[%clk 0:02:59.7]} 7... c6 {[%clk 0:02:06.4]} 8. h3
{[%clk 0:02:55.4]} 8... Qc7 {[%clk 0:02:05.2]} 9. Be3 {[%clk 0:02:53.9]} 9... b5
{[%clk 0:02:04.5]} 10. a3 {[%clk 0:02:51.4]} 10... a5 {[%clk 0:02:02.4]} 11. g4
{[%clk 0:02:49.9]} 11... Rb8 {[%clk 0:02:00.3]} 12. Ng3 {[%clk 0:02:50]} 12...
g6 {[%clk 0:01:57.6]} 13. f4 {[%clk 0:02:41.7]} 13... b4 {[%clk 0:01:48.3]} 14.
axb4 {[%clk 0:02:39.3]} 14... axb4 {[%clk 0:01:49.2]} 15. Nce2 {[%clk
0:02:39.5]} 15... Re8 {[%clk 0:01:42.8]} 16. g5 {[%clk 0:02:09.2]} 16... Nh5
{[%clk 0:01:31.1]} 17. Nxh5 {[%clk 0:02:07.9]} 17... gxh5 {[%clk 0:01:32]} 18.
Ng3 {[%clk 0:02:04.6]} 18... exd4 {[%clk 0:01:26.3]} 19. Bxd4 {[%clk 0:02:00.3]}
19... c5 {[%clk 0:01:26.1]} 20. Qxh5 {[%clk 0:01:03.1]} 20... cxd4 {[%clk
0:01:16.8]} 21. Nf5 {[%clk 0:00:52.2]} 21... Bf8 {[%clk 0:01:02.4]} 22. Nh6+
{[%clk 0:00:51.7]} 22... Bxh6 {[%clk 0:01:00.8]} 23. gxh6 {[%clk 0:00:49.8]}
23... Qc5 {[%clk 0:00:42.6]} 24. Qg4+ {[%clk 0:00:42]} 24... Kf8 {[%clk
0:00:42.3]} 25. Qg7+ {[%clk 0:00:32.4]} 25... Ke7 {[%clk 0:00:41.7]} 26. Qxh7
{[%clk 0:00:24.1]} 26... Nf6 {[%clk 0:00:38.5]} 27. Qg7 {[%clk 0:00:20.2]} 27...
Bd7 {[%clk 0:00:33.4]} 28. e5 {[%clk 0:00:19.4]} 28... d3+ {[%clk 0:00:27.9]}
29. Kh1 {[%clk 0:00:18.4]} 29... Nd5 {[%clk 0:00:21]} 30. exd6+ {[%clk 0:00:13]}
30... Kxd6 {[%clk 0:00:20.1]} 31. Qxf7 {[%clk 0:00:11.2]} 31... Be6 {[%clk
0:00:18.9]} 32. Qg6 {[%clk 0:00:08.7]} 32... Rg8 {[%clk 0:00:17.9]} 33. Qe4
{[%clk 0:00:07.6]} 33... Ne3 {[%clk 0:00:15]} 34. Qxd3+ {[%clk 0:00:06.7]} 34...
Bd5 {[%clk 0:00:13.3]} 35. Ra6+ {[%clk 0:00:00.9]} 35... Kc7 {[%clk 0:00:10.5]}
36. Bxd5 {[%clk 0:00:01.7]} 36... Qxd5+ {[%clk 0:00:09.6]} 37. Qxd5 {[%clk
0:00:01.3]} 37... Nxd5 {[%clk 0:00:10.5]} 38. h7 {[%clk 0:00:01.8]} 38... Rh8
{[%clk 0:00:09.9]} 39. Rh6 {[%clk 0:00:02.7]} 39... Ne7 {[%clk 0:00:08.7]} 40.
f5 {[%clk 0:00:01]} 40... Rbf8 {[%clk 0:00:08.8]} 41. f6 {[%clk 0:00:01.1]}
41... Nd5 {[%clk 0:00:09.7]} 0-1